[Event "Titled Tuesday Blitz March 29 Late 2022"]
[White "Demchenko, Anton"]
[Black "Martin Duque, Jesus"]
[WhiteFideId "4160258"]
[BlackFideId "2208954"]
[WhiteElo "2539"]
[BlackElo "2243"]
[Result "1-0"]
[Round "03"]
[TimeControl "180+1"]
[Date "2022.03.30"]
[WhiteClock "0:00:07"]
[BlackClock "0:00:09"]

1. e4 {[%clk 0:03:00]}  c5 {[%clk 0:03:00]} 2. Nf3 {[%clk 0:03:00]}  e6 {[%clk 0:03:00]} 3. d4 {[%clk 0:03:00]}  cxd4 {[%clk 0:03:01]} 4. Nxd4 {[%clk 0:03:01]}  Nc6 {[%clk 0:03:02]} 5. Nb5 {[%clk 0:03:00]}  d6 {[%clk 0:03:02]} 6. Bf4 {[%clk 0:02:59]}  e5 {[%clk 0:03:01]} 7. Be3 {[%clk 0:03:00]}  Be7 {[%clk 0:03:00]} 8. c4 {[%clk 0:02:55]}  Nf6 {[%clk 0:02:59]} 9. N1c3 {[%clk 0:02:54]}  a6 {[%clk 0:02:52]} 10. Na3 {[%clk 0:02:55]}  O-O {[%clk 0:02:45]} 11. Be2 {[%clk 0:02:54]}  Be6 {[%clk 0:02:10]} 12. O-O {[%clk 0:02:55]}  Nd7 {[%clk 0:02:04]} 13. Qd2 {[%clk 0:02:55]}  Rc8 {[%clk 0:01:51]} 14. Rfd1 {[%clk 0:02:52]}  h6 {[%clk 0:01:50]} 15. Rac1 {[%clk 0:02:51]}  Kh8 {[%clk 0:01:42]} 16. Nc2 {[%clk 0:02:49]}  f5 {[%clk 0:01:39]} 17. exf5 {[%clk 0:02:49]}  Bxf5 {[%clk 0:01:39]} 18. b3 {[%clk 0:02:50]}  Qa5 {[%clk 0:01:31]} 19. Bd3 {[%clk 0:02:35]}  Be6 {[%clk 0:01:29]} 20. Ne4 {[%clk 0:02:22]}  Qxd2 {[%clk 0:01:01]} 21. Bxd2 {[%clk 0:02:22]}  Nd4 {[%clk 0:00:54]} 22. Be3 {[%clk 0:02:03]}  Nf5 {[%clk 0:00:50]} 23. Bd2 {[%clk 0:01:47]}  Nd4 {[%clk 0:00:50]} 24. Bc3 {[%clk 0:01:41]}  Nxc2 {[%clk 0:00:48]} 25. Bxc2 {[%clk 0:01:23]}  Rc6 {[%clk 0:00:48]} 26. Bb4 {[%clk 0:01:20]}  Nc5 {[%clk 0:00:29]} 27. Nxc5 {[%clk 0:01:21]}  dxc5 {[%clk 0:00:29]} 28. Bc3 {[%clk 0:01:21]}  Bg5 {[%clk 0:00:29]} 29. Rb1 {[%clk 0:01:18]}  Bf5 {[%clk 0:00:24]} 30. Bxf5 {[%clk 0:01:12]}  Rxf5 {[%clk 0:00:25]} 31. Re1 {[%clk 0:01:09]}  Re6 {[%clk 0:00:20]} 32. f3 {[%clk 0:01:06]}  b5 {[%clk 0:00:19]} 33. Re4 {[%clk 0:01:04]}  b4 {[%clk 0:00:17]} 34. Bb2 {[%clk 0:00:50]}  Rd6 {[%clk 0:00:15]} 35. Re2 {[%clk 0:00:50]}  a5 {[%clk 0:00:13]} 36. Bxe5 {[%clk 0:00:43]}  Rd3 {[%clk 0:00:08]} 37. Rf1 {[%clk 0:00:28]}  a4 {[%clk 0:00:07]} 38. f4 {[%clk 0:00:28]}  Bd8 {[%clk 0:00:06]} 39. Rf3 {[%clk 0:00:27]}  Rxf3 {[%clk 0:00:04]} 40. gxf3 {[%clk 0:00:28]}  axb3 {[%clk 0:00:05]} 41. axb3 {[%clk 0:00:28]}  Bf6 {[%clk 0:00:03]} 42. Kf2 {[%clk 0:00:29]}  Bh4+ {[%clk 0:00:01]} 43. Ke3 {[%clk 0:00:28]}  Rf8 {[%clk 0:00:02]} 44. Ke4 {[%clk 0:00:29]}  Rd8 {[%clk 0:00:02]} 45. Re3 {[%clk 0:00:26]}  Rd1 {[%clk 0:00:01]} 46. Rd3 {[%clk 0:00:26]}  Re1+ {[%clk 0:00:02]} 47. Kf5 {[%clk 0:00:27]}  Bf2 {[%clk 0:00:02]} 48. Rd8+ {[%clk 0:00:15]}  Kh7 {[%clk 0:00:01]} 49. Rd7 {[%clk 0:00:16]}  Rg1 {[%clk 0:00:02]} 50. Ke6 {[%clk 0:00:09]}  Be3 {[%clk 0:00:02]} 51. f5 {[%clk 0:00:09]}  Bf2 {[%clk 0:00:02]} 52. f6 {[%clk 0:00:09]}  Rg6 {[%clk 0:00:03]} 53. f4 {[%clk 0:00:07]}  Bh4 {[%clk 0:00:04]} 54. Rf7 {[%clk 0:00:06]}  Rxf6+ {[%clk 0:00:05]} 55. Bxf6 {[%clk 0:00:06]}  Bxf6 {[%clk 0:00:06]} 56. Rc7 {[%clk 0:00:06]}  Bd4 {[%clk 0:00:05]} 57. f5 {[%clk 0:00:06]}  Bc3 {[%clk 0:00:06]} 58. h3 {[%clk 0:00:07]}  Bd4 {[%clk 0:00:07]} 59. Kf7 {[%clk 0:00:07]}  h5 {[%clk 0:00:07]} 60. Rc6 {[%clk 0:00:07]}  h4 {[%clk 0:00:07]} 61. Rg6 {[%clk 0:00:08]}  Bf2 {[%clk 0:00:08]} 62. Rg4 {[%clk 0:00:08]}  Bd4 {[%clk 0:00:09]} 63. Rxh4# {[%clk 0:00:07]} 1-0


[Site "https://www.chess.com"]

[Event "Titled Tuesday Blitz March 29 Late 2022"]
[White "Denishev, Marat"]
[Black "Theodorou, Nikolas"]
[WhiteFideId "24131563"]
[BlackFideId "4262875"]
[WhiteElo "2197"]
[BlackElo "2472"]
[Result "0-1"]
[Round "03"]
[TimeControl "180+1"]
[Date "2022.03.29"]
[WhiteClock "0:00:20"]
[BlackClock "0:00:38"]

1. c4 {[%clk 0:03:00]}  Nf6 {[%clk 0:02:59]} 2. g3 {[%clk 0:03:00]}  g6 {[%clk 0:03:00]} 3. Bg2 {[%clk 0:03:01]}  Bg7 {[%clk 0:03:01]} 4. Nc3 {[%clk 0:03:00]}  O-O {[%clk 0:03:01]} 5. e4 {[%clk 0:03:00]}  d6 {[%clk 0:03:01]} 6. Nge2 {[%clk 0:03:00]}  c5 {[%clk 0:03:02]} 7. d3 {[%clk 0:03:00]}  Nc6 {[%clk 0:03:02]} 8. O-O {[%clk 0:03:01]}  Bg4 {[%clk 0:03:03]} 9. h3 {[%clk 0:03:00]}  Be6 {[%clk 0:03:03]} 10. Be3 {[%clk 0:02:59]}  Rb8 {[%clk 0:03:03]} 11. f4 {[%clk 0:02:59]}  a6 {[%clk 0:03:03]} 12. g4 {[%clk 0:02:57]}  b5 {[%clk 0:03:03]} 13. f5 {[%clk 0:02:43]}  Bd7 {[%clk 0:03:03]} 14. g5 {[%clk 0:02:42]}  Nh5 {[%clk 0:03:02]} 15. Nd5 {[%clk 0:02:26]}  bxc4 {[%clk 0:02:59]} 16. dxc4 {[%clk 0:02:17]}  Rxb2 {[%clk 0:02:59]} 17. Nef4 {[%clk 0:02:05]}  Nxf4 {[%clk 0:02:56]} 18. Rxf4 {[%clk 0:02:06]}  Be5 {[%clk 0:02:34]} 19. Rh4 {[%clk 0:02:01]}  e6 {[%clk 0:02:31]} 20. Nf4 {[%clk 0:00:38]}  Nd4 {[%clk 0:02:13]} 21. f6 {[%clk 0:00:34]}  Bc6 {[%clk 0:02:03]} 22. Qg4 {[%clk 0:00:31]}  Nf5 {[%clk 0:01:18]} 23. Rxh7 {[%clk 0:00:26]}  Bxf4 {[%clk 0:01:01]} 24. exf5 {[%clk 0:00:20]}  Bxe3+ {[%clk 0:00:55]} 25. Kf1 {[%clk 0:00:20]}  Bxg2+ {[%clk 0:00:53]} 26. Ke1 {[%clk 0:00:20]}  Bf2+ {[%clk 0:00:38]} 27. Kd1 {[%clk 0:00:20]}  Kxh7 {[%clk 0:00:38]} 0-1


[Site "https://www.chess.com"]

[Event "Titled Tuesday Blitz March 29 Late 2022"]
[White "Dounis, Alexandros"]
[Black "Rasulov, Vugar"]
[WhiteFideId "4213238"]
[BlackFideId "13402390"]
[WhiteElo "2204"]
[BlackElo "2560"]
[Result "0-1"]
[Round "03"]
[TimeControl "180+1"]
[Date "2022.03.30"]
[WhiteClock "0:00:11"]
[BlackClock "0:01:26"]

1. Nf3 {[%clk 0:03:00]}  d5 {[%clk 0:03:00]} 2. g3 {[%clk 0:03:00]}  c6 {[%clk 0:03:00]} 3. Bg2 {[%clk 0:03:01]}  Nf6 {[%clk 0:03:00]} 4. O-O {[%clk 0:03:01]}  Bf5 {[%clk 0:03:01]} 5. d3 {[%clk 0:03:01]}  e6 {[%clk 0:03:01]} 6. Nh4 {[%clk 0:02:59]}  Bg6 {[%clk 0:03:00]} 7. Nxg6 {[%clk 0:02:58]}  hxg6 {[%clk 0:03:01]} 8. e4 {[%clk 0:02:58]}  Nbd7 {[%clk 0:03:00]} 9. Qe2 {[%clk 0:02:58]}  Bd6 {[%clk 0:02:56]} 10. f4 {[%clk 0:02:53]}  Bc7 {[%clk 0:02:43]} 11. e5 {[%clk 0:02:34]}  Ng8 {[%clk 0:02:43]} 12. Nd2 {[%clk 0:02:25]}  Ne7 {[%clk 0:02:43]} 13. Nf3 {[%clk 0:02:22]}  Nf5 {[%clk 0:02:39]} 14. d4 {[%clk 0:02:06]}  Bb6 {[%clk 0:02:39]} 15. c3 {[%clk 0:02:05]}  c5 {[%clk 0:02:39]} 16. Rd1 {[%clk 0:02:01]}  cxd4 {[%clk 0:02:35]} 17. cxd4 {[%clk 0:01:59]}  Rc8 {[%clk 0:02:36]} 18. b3 {[%clk 0:01:53]}  Nb8 {[%clk 0:02:31]} 19. g4 {[%clk 0:01:43]}  Nh4 {[%clk 0:02:31]} 20. Be3 {[%clk 0:01:22]}  Nc6 {[%clk 0:02:27]} 21. Bf2 {[%clk 0:01:16]}  Nxf3+ {[%clk 0:02:23]} 22. Qxf3 {[%clk 0:01:15]}  Qe7 {[%clk 0:02:17]} 23. Rac1 {[%clk 0:01:11]}  Qa3 {[%clk 0:02:11]} 24. f5 {[%clk 0:01:07]}  O-O {[%clk 0:02:06]} 25. f6 {[%clk 0:01:06]}  Nxd4 {[%clk 0:02:03]} 26. Bxd4 {[%clk 0:00:47]}  Bxd4+ {[%clk 0:01:59]} 27. Rxd4 {[%clk 0:00:45]}  Rxc1+ {[%clk 0:02:00]} 28. Bf1 {[%clk 0:00:41]}  Qc5 {[%clk 0:01:59]} 29. Qf2 {[%clk 0:00:38]}  Rc2 {[%clk 0:01:56]} 30. Qe3 {[%clk 0:00:25]}  Rxa2 {[%clk 0:01:56]} 31. fxg7 {[%clk 0:00:24]}  Kxg7 {[%clk 0:01:54]} 32. h4 {[%clk 0:00:15]}  Rb2 {[%clk 0:01:41]} 33. h5 {[%clk 0:00:13]}  Rxb3 {[%clk 0:01:42]} 34. Qf2 {[%clk 0:00:13]}  Kg8 {[%clk 0:01:31]} 35. h6 {[%clk 0:00:12]}  Kh7 {[%clk 0:01:26]} 36. Qh4 {[%clk 0:00:11]}  Qxd4+ {[%clk 0:01:26]} 0-1


[Site "https://www.chess.com"]

[Event "Titled Tuesday Blitz March 29 Late 2022"]
[White "Fedoseev, Vladimir"]
[Black "Srinath, Rao S.V."]
[WhiteFideId "24130737"]
[BlackFideId "5028876"]
[WhiteElo "2726"]
[BlackElo "2181"]
[Result "1-0"]
[Round "03"]
[TimeControl "180+1"]
[Date "2022.03.29"]
[WhiteClock "0:01:45"]
[BlackClock "0:01:17"]

1. e4 {[%clk 0:03:00]}  e6 {[%clk 0:02:52]} 2. d4 {[%clk 0:03:00]}  d5 {[%clk 0:02:53]} 3. e5 {[%clk 0:03:00]}  c5 {[%clk 0:02:53]} 4. c3 {[%clk 0:03:01]}  Bd7 {[%clk 0:02:52]} 5. Nf3 {[%clk 0:03:01]}  Qb6 {[%clk 0:02:51]} 6. Be2 {[%clk 0:02:50]}  Nc6 {[%clk 0:02:48]} 7. O-O {[%clk 0:02:49]}  f6 {[%clk 0:02:45]} 8. dxc5 {[%clk 0:02:39]}  Bxc5 {[%clk 0:02:42]} 9. b4 {[%clk 0:02:40]}  Be7 {[%clk 0:02:41]} 10. Be3 {[%clk 0:02:38]}  Qc7 {[%clk 0:02:41]} 11. exf6 {[%clk 0:02:35]}  Nxf6 {[%clk 0:02:42]} 12. b5 {[%clk 0:02:27]}  Ne5 {[%clk 0:02:39]} 13. Nxe5 {[%clk 0:02:24]}  Qxe5 {[%clk 0:02:40]} 14. Nd2 {[%clk 0:02:16]}  Qxc3 {[%clk 0:02:34]} 15. Nf3 {[%clk 0:02:16]}  O-O {[%clk 0:02:29]} 16. a4 {[%clk 0:02:13]}  Ne4 {[%clk 0:02:23]} 17. Bd4 {[%clk 0:02:11]}  Qc7 {[%clk 0:02:22]} 18. Bd3 {[%clk 0:02:06]}  Bf6 {[%clk 0:02:15]} 19. Rc1 {[%clk 0:02:04]}  Qd8 {[%clk 0:02:04]} 20. Ne5 {[%clk 0:02:00]}  Bxe5 {[%clk 0:01:51]} 21. Bxe5 {[%clk 0:02:00]}  Qg5 {[%clk 0:01:51]} 22. f4 {[%clk 0:01:55]}  Qg6 {[%clk 0:01:48]} 23. Rc7 {[%clk 0:01:52]}  Rf7 {[%clk 0:01:38]} 24. Rxb7 {[%clk 0:01:51]}  Be8 {[%clk 0:01:36]} 25. Rxf7 {[%clk 0:01:47]}  Bxf7 {[%clk 0:01:33]} 26. Qc2 {[%clk 0:01:47]}  Qf5 {[%clk 0:01:20]} 27. a5 {[%clk 0:01:47]}  Bg6 {[%clk 0:01:18]} 28. b6 {[%clk 0:01:47]}  Qf7 {[%clk 0:01:17]} 29. Qc6 {[%clk 0:01:45]} 1-0


[Site "https://www.chess.com"]

[Event "Titled Tuesday Blitz March 29 Late 2022"]
[White "Goltsev, Dmitry"]
[Black "Vovk, Orest"]
[WhiteFideId "24176710"]
[BlackFideId "14113490"]
[WhiteElo "2273"]
[BlackElo "2203"]
[Result "0-1"]
[Round "03"]
[TimeControl "180+1"]
[Date "2022.03.30"]
[WhiteClock "0:00:10"]
[BlackClock "0:00:12"]

1. e4 {[%clk 0:03:00]}  g5 {[%clk 0:02:54]} 2. d4 {[%clk 0:03:00]}  h6 {[%clk 0:02:54]} 3. h4 {[%clk 0:03:01]}  g4 {[%clk 0:02:54]} 4. Qxg4 {[%clk 0:02:46]}  d5 {[%clk 0:02:52]} 5. Qf3 {[%clk 0:02:46]}  dxe4 {[%clk 0:02:53]} 6. Qxe4 {[%clk 0:02:47]}  Nf6 {[%clk 0:02:53]} 7. Qd3 {[%clk 0:02:46]}  Nc6 {[%clk 0:02:53]} 8. c3 {[%clk 0:02:46]}  Qd5 {[%clk 0:02:51]} 9. Nf3 {[%clk 0:02:45]}  Bg4 {[%clk 0:02:50]} 10. Be2 {[%clk 0:02:44]}  O-O-O {[%clk 0:02:50]} 11. Bf4 {[%clk 0:02:42]}  Rg8 {[%clk 0:02:37]} 12. Nbd2 {[%clk 0:02:38]}  Nh5 {[%clk 0:02:23]} 13. Bh2 {[%clk 0:02:36]}  Bf5 {[%clk 0:02:22]} 14. Qe3 {[%clk 0:02:32]}  Rxg2 {[%clk 0:02:19]} 15. Bc4 {[%clk 0:02:29]}  Qd7 {[%clk 0:02:13]} 16. Bxf7 {[%clk 0:02:24]}  Nf6 {[%clk 0:02:11]} 17. Bg3 {[%clk 0:02:18]}  e6 {[%clk 0:02:02]} 18. Kf1 {[%clk 0:02:01]}  Rxg3 {[%clk 0:02:01]} 19. fxg3 {[%clk 0:02:02]}  Qxf7 {[%clk 0:02:01]} 20. Kg2 {[%clk 0:02:01]}  Ng4 {[%clk 0:01:59]} 21. Qe2 {[%clk 0:01:59]}  e5 {[%clk 0:01:57]} 22. Rhf1 {[%clk 0:01:54]}  exd4 {[%clk 0:01:53]} 23. Nxd4 {[%clk 0:01:53]}  Nxd4 {[%clk 0:01:48]} 24. cxd4 {[%clk 0:01:53]}  Rxd4 {[%clk 0:01:33]} 25. Nb3 {[%clk 0:01:39]}  Qd5+ {[%clk 0:01:32]} 26. Kg1 {[%clk 0:01:30]}  Re4 {[%clk 0:01:24]} 27. Qf3 {[%clk 0:01:26]}  Bc5+ {[%clk 0:01:18]} 28. Nxc5 {[%clk 0:01:24]}  Qxc5+ {[%clk 0:01:18]} 29. Kh1 {[%clk 0:01:24]}  Ne3 {[%clk 0:00:40]} 30. Rac1 {[%clk 0:01:18]}  Qe5 {[%clk 0:00:32]} 31. Rf2 {[%clk 0:01:13]}  Rxh4+ {[%clk 0:00:24]} 32. Kg1 {[%clk 0:01:00]}  Rh3 {[%clk 0:00:24]} 33. Qf4 {[%clk 0:00:43]}  Rxg3+ {[%clk 0:00:23]} 34. Kh2 {[%clk 0:00:43]}  Rh3+ {[%clk 0:00:17]} 35. Kg1 {[%clk 0:00:42]}  Qxf4 {[%clk 0:00:17]} 36. Rxf4 {[%clk 0:00:42]}  b6 {[%clk 0:00:18]} 37. Rc3 {[%clk 0:00:41]}  Bd7 {[%clk 0:00:13]} 38. Re4 {[%clk 0:00:36]}  Nd5 {[%clk 0:00:11]} 39. Rc1 {[%clk 0:00:19]}  Kb7 {[%clk 0:00:11]} 40. Rd4 {[%clk 0:00:18]}  Bc6 {[%clk 0:00:11]} 41. b4 {[%clk 0:00:17]}  Nxb4 {[%clk 0:00:09]} 42. Rc3 {[%clk 0:00:09]}  Rxc3 {[%clk 0:00:09]} 43. Rxb4 {[%clk 0:00:09]}  Rc1+ {[%clk 0:00:08]} 44. Kf2 {[%clk 0:00:10]}  Rc2+ {[%clk 0:00:09]} 45. Ke3 {[%clk 0:00:10]}  Rxa2 {[%clk 0:00:10]} 46. Rh4 {[%clk 0:00:11]}  Ra5 {[%clk 0:00:11]} 47. Kd4 {[%clk 0:00:11]}  Rc5 {[%clk 0:00:11]} 48. Rxh6 {[%clk 0:00:11]}  a5 {[%clk 0:00:12]} 49. Rh8 {[%clk 0:00:11]}  a4 {[%clk 0:00:13]} 50. Ra8 {[%clk 0:00:10]}  Kxa8 {[%clk 0:00:12]} 0-1


[Site "https://www.chess.com"]

[Event "Titled Tuesday Blitz March 29 Late 2022"]
[White "Ider, Borya"]
[Black "Aggelis, Nikolaos"]
[WhiteFideId "4901134"]
[BlackFideId "4213220"]
[WhiteElo "2512"]
[BlackElo "2154"]
[Result "1-0"]
[Round "03"]
[TimeControl "180+1"]
[Date "2022.03.29"]
[WhiteClock "0:02:02"]
[BlackClock "0:00:33"]

1. d4 {[%clk 0:03:00]}  d5 {[%clk 0:02:58]} 2. Nf3 {[%clk 0:03:01]}  c5 {[%clk 0:02:57]} 3. c4 {[%clk 0:03:02]}  dxc4 {[%clk 0:02:52]} 4. d5 {[%clk 0:03:02]}  e6 {[%clk 0:02:52]} 5. Nc3 {[%clk 0:03:01]}  exd5 {[%clk 0:02:50]} 6. Qxd5 {[%clk 0:03:00]}  Qxd5 {[%clk 0:02:49]} 7. Nxd5 {[%clk 0:03:01]}  Bd6 {[%clk 0:02:49]} 8. e4 {[%clk 0:02:59]}  Nc6 {[%clk 0:02:40]} 9. Bxc4 {[%clk 0:02:58]}  Nge7 {[%clk 0:02:38]} 10. O-O {[%clk 0:02:48]}  O-O {[%clk 0:02:34]} 11. Rd1 {[%clk 0:02:48]}  Nxd5 {[%clk 0:02:33]} 12. Bxd5 {[%clk 0:02:48]}  Be7 {[%clk 0:02:27]} 13. Bxc6 {[%clk 0:02:46]}  bxc6 {[%clk 0:02:28]} 14. Be3 {[%clk 0:02:44]}  Rb8 {[%clk 0:02:26]} 15. b3 {[%clk 0:02:44]}  c4 {[%clk 0:02:19]} 16. bxc4 {[%clk 0:02:42]}  Be6 {[%clk 0:02:19]} 17. Ne5 {[%clk 0:02:34]}  Bf6 {[%clk 0:02:18]} 18. Nxc6 {[%clk 0:02:34]}  Rbc8 {[%clk 0:02:05]} 19. e5 {[%clk 0:02:30]}  Rxc6 {[%clk 0:02:03]} 20. exf6 {[%clk 0:02:30]}  Bxc4 {[%clk 0:02:01]} 21. fxg7 {[%clk 0:02:27]}  Kxg7 {[%clk 0:02:00]} 22. Bxa7 {[%clk 0:02:27]}  Ra8 {[%clk 0:02:00]} 23. Bd4+ {[%clk 0:02:25]}  f6 {[%clk 0:01:59]} 24. a3 {[%clk 0:02:26]}  Rd6 {[%clk 0:01:53]} 25. Bc5 {[%clk 0:02:24]}  Rxd1+ {[%clk 0:01:52]} 26. Rxd1 {[%clk 0:02:25]}  Kg6 {[%clk 0:01:50]} 27. f3 {[%clk 0:02:24]}  h5 {[%clk 0:01:48]} 28. Kf2 {[%clk 0:02:24]}  Rc8 {[%clk 0:01:45]} 29. Bb4 {[%clk 0:02:24]}  Bb3 {[%clk 0:01:45]} 30. Rd2 {[%clk 0:02:24]}  Rc2 {[%clk 0:01:44]} 31. Rxc2 {[%clk 0:02:24]}  Bxc2 {[%clk 0:01:45]} 32. Ke3 {[%clk 0:02:24]}  Kf5 {[%clk 0:01:43]} 33. Bc3 {[%clk 0:02:19]}  Ke6 {[%clk 0:01:37]} 34. Kf4 {[%clk 0:02:19]}  Bd1 {[%clk 0:01:37]} 35. Kg3 {[%clk 0:02:19]}  Be2 {[%clk 0:01:36]} 36. Kh4 {[%clk 0:02:18]}  Bf1 {[%clk 0:01:36]} 37. Kxh5 {[%clk 0:02:10]}  Bxg2 {[%clk 0:01:36]} 38. Kg4 {[%clk 0:02:10]}  Kf7 {[%clk 0:01:30]} 39. h4 {[%clk 0:02:09]}  Bf1 {[%clk 0:01:23]} 40. a4 {[%clk 0:02:09]}  Bd3 {[%clk 0:01:22]} 41. a5 {[%clk 0:02:09]}  Kg6 {[%clk 0:01:22]} 42. h5+ {[%clk 0:02:07]}  Kg7 {[%clk 0:01:22]} 43. Bd2 {[%clk 0:02:06]}  Kf7 {[%clk 0:01:21]} 44. h6 {[%clk 0:02:05]}  Kg6 {[%clk 0:01:22]} 45. Kg3 {[%clk 0:02:06]}  Be2 {[%clk 0:01:21]} 46. Kf2 {[%clk 0:02:05]}  Ba6 {[%clk 0:01:21]} 47. Kg3 {[%clk 0:02:02]}  Bb7 {[%clk 0:01:21]} 48. Bc3 {[%clk 0:01:57]}  f5 {[%clk 0:01:16]} 49. Bd2 {[%clk 0:01:55]}  Kh7 {[%clk 0:01:11]} 50. Kf2 {[%clk 0:01:54]}  Kg6 {[%clk 0:01:10]} 51. Bf4 {[%clk 0:01:53]}  Kh7 {[%clk 0:01:07]} 52. Bg5 {[%clk 0:01:53]}  Kg6 {[%clk 0:01:08]} 53. f4 {[%clk 0:01:54]}  Ba6 {[%clk 0:00:58]} 54. Ke3 {[%clk 0:01:55]}  Bc4 {[%clk 0:00:42]} 55. Kd4 {[%clk 0:01:56]}  Be6 {[%clk 0:00:40]} 56. Kc5 {[%clk 0:01:57]}  Kf7 {[%clk 0:00:38]} 57. Kb6 {[%clk 0:01:58]}  Kf8 {[%clk 0:00:37]} 58. a6 {[%clk 0:01:58]}  Bd5 {[%clk 0:00:34]} 59. a7 {[%clk 0:01:59]}  Kg8 {[%clk 0:00:34]} 60. Kc7 {[%clk 0:02:00]}  Kf7 {[%clk 0:00:34]} 61. Kb8 {[%clk 0:02:01]}  Kg6 {[%clk 0:00:33]} 62. a8=Q {[%clk 0:02:01]}  Bxa8 {[%clk 0:00:33]} 63. Kxa8 {[%clk 0:02:02]} 1-0


[Site "https://www.chess.com"]

[Event "Titled Tuesday Blitz March 29 Late 2022"]
[White "Iskusnyh, Sergei"]
[Black "Dreev, Aleksey"]
[WhiteFideId "4120027"]
[BlackFideId "4100107"]
[WhiteElo "2492"]
[BlackElo "2625"]
[Result "0-1"]
[Round "03"]
[TimeControl "180+1"]
[Date "2022.03.29"]
[WhiteClock "0:00:12"]
[BlackClock "0:00:21"]

1. d4 {[%clk 0:03:00]}  d5 {[%clk 0:02:59]} 2. c4 {[%clk 0:03:00]}  c6 {[%clk 0:03:00]} 3. Nf3 {[%clk 0:03:00]}  Nf6 {[%clk 0:03:01]} 4. Qb3 {[%clk 0:03:00]}  e6 {[%clk 0:02:54]} 5. Bg5 {[%clk 0:02:52]}  h6 {[%clk 0:02:54]} 6. Bh4 {[%clk 0:02:49]}  Nbd7 {[%clk 0:02:46]} 7. Nc3 {[%clk 0:02:36]}  b6 {[%clk 0:02:24]} 8. cxd5 {[%clk 0:02:26]}  cxd5 {[%clk 0:02:20]} 9. e3 {[%clk 0:02:25]}  Bb7 {[%clk 0:02:20]} 10. Bb5 {[%clk 0:01:31]}  Be7 {[%clk 0:02:10]} 11. Ne5 {[%clk 0:01:29]}  O-O {[%clk 0:02:06]} 12. Nc6 {[%clk 0:01:23]}  Bxc6 {[%clk 0:02:06]} 13. Bxc6 {[%clk 0:01:23]}  Rc8 {[%clk 0:02:07]} 14. Bb5 {[%clk 0:01:23]}  Ne8 {[%clk 0:02:01]} 15. Bg3 {[%clk 0:01:21]}  Bd6 {[%clk 0:02:00]} 16. Ba6 {[%clk 0:01:11]}  Rb8 {[%clk 0:01:40]} 17. Nb5 {[%clk 0:01:00]}  Bxg3 {[%clk 0:01:37]} 18. hxg3 {[%clk 0:01:01]}  Nc7 {[%clk 0:01:37]} 19. Nxc7 {[%clk 0:00:59]}  Qxc7 {[%clk 0:01:38]} 20. Bd3 {[%clk 0:00:55]}  Nf6 {[%clk 0:01:29]} 21. O-O {[%clk 0:00:54]}  a5 {[%clk 0:00:53]} 22. Rac1 {[%clk 0:00:53]}  Qd6 {[%clk 0:00:53]} 23. Rc3 {[%clk 0:00:47]}  Rfc8 {[%clk 0:00:52]} 24. Rfc1 {[%clk 0:00:47]}  Rxc3 {[%clk 0:00:52]} 25. Qxc3 {[%clk 0:00:47]}  Kf8 {[%clk 0:00:46]} 26. Qc7 {[%clk 0:00:44]}  Qxc7 {[%clk 0:00:39]} 27. Rxc7 {[%clk 0:00:43]}  Ne8 {[%clk 0:00:40]} 28. Rd7 {[%clk 0:00:38]}  b5 {[%clk 0:00:37]} 29. Ra7 {[%clk 0:00:36]}  a4 {[%clk 0:00:37]} 30. a3 {[%clk 0:00:34]}  Nd6 {[%clk 0:00:36]} 31. f3 {[%clk 0:00:31]}  Nc4 {[%clk 0:00:31]} 32. Bxc4 {[%clk 0:00:31]}  bxc4 {[%clk 0:00:31]} 33. Rxa4 {[%clk 0:00:32]}  Rxb2 {[%clk 0:00:31]} 34. Ra7 {[%clk 0:00:30]}  Re2 {[%clk 0:00:30]} 35. a4 {[%clk 0:00:23]}  Rxe3 {[%clk 0:00:29]} 36. a5 {[%clk 0:00:24]}  Ra3 {[%clk 0:00:28]} 37. a6 {[%clk 0:00:24]}  g5 {[%clk 0:00:28]} 38. g4 {[%clk 0:00:24]}  Kg7 {[%clk 0:00:27]} 39. Kf2 {[%clk 0:00:24]}  Kf6 {[%clk 0:00:27]} 40. Ke2 {[%clk 0:00:21]}  e5 {[%clk 0:00:27]} 41. dxe5+ {[%clk 0:00:18]}  Kxe5 {[%clk 0:00:28]} 42. Ra8 {[%clk 0:00:14]}  Kd4 {[%clk 0:00:26]} 43. Kf2 {[%clk 0:00:12]}  Kd3 {[%clk 0:00:22]} 44. a7 {[%clk 0:00:12]}  d4 {[%clk 0:00:22]} 45. Kg3 {[%clk 0:00:12]}  c3 {[%clk 0:00:21]} 0-1


[Site "https://www.chess.com"]